bitfinex/quotes_SOLUSD_20260203
["timestamp","ask_amount","ask_price","bid_price","bid_amount"]
[1770117250645,1.37023643,103.22,103.2,4.31728462]
[1770117251441,1.37023643,103.22,103.19,4.31236091]
[1770117252428,11.05898312,103.22,103.19,4.31236091]
[1770117252624,11.05898312,103.22,103.2,2.89028914]
[1770117257428,11.05898312,103.22,103.19,4.31236091]
[1770117258437,11.05898312,103.22,103.19,4.3116261]
[1770117261140,1.33674186,103.21,103.19,2.88955433]
[1770117261344,1.33674186,103.21,103.18,4.19098469]
[1770117262146,1.33674186,103.21,103.18,2.88955433]
[1770117263348,11.02666434,103.2,103.18,2.88955433]
[1770117266052,11.02666434,103.2,103.18,4.19098469]
[1770117268432,11.02666434,103.2,103.18,1.30143036]
[1770117268633,11.02666434,103.2,103.18,4.19098469]
[1770117281266,24.22334756,103.21,103.18,4.19098469]
[1770117281267,1.33674186,103.21,103.18,4.19098469]
[1770117282878,1.33674186,103.21,103.18,2.88955433]
[1770117283446,11.02666434,103.2,103.18,4.19098469]
[1770117286267,11.02666434,103.2,103.18,2.88955433]
[1770117290285,1.36336196,103.19,103.18,2.88955433]
[1770117290475,33.90815733,103.22,103.18,2.88955433]
[1770117291372,33.90815733,103.22,103.18,4.23457162]
[1770117292454,11.01639611,103.2,103.18,4.23457162]
[1770117293360,1.32647363,103.19,103.18,2.88955433]
[1770117293751,9.68992248,103.2,103.18,2.88955433]
[1770117293952,11.01639611,103.2,103.18,2.88955433]
[1770117294155,11.01639611,103.2,103.18,4.18202886]
[1770117294466,1.32647363,103.2,103.18,4.18202886]
[1770117298088,11.01648322,103.2,103.17,4.18202886]
[1770117300971,1.32647363,103.19,103.16,4.18202886]
[1770117301159,1.32647363,103.19,103.16,13.87568188]
[1770117301472,1.32647363,103.19,103.16,4.18202886]
[1770117302076,1.32647363,103.19,103.15,4.18202886]
[1770117302578,1.32647363,103.19,103.15,2.88955433]
[1770117302881,1.32647363,103.17,103.15,4.18202886]
[1770117308488,1.32647363,103.17,103.16,2.88955433]
[1770117309189,9.69180073,103.18,103.16,2.88955433]
[1770117309368,11.01827436,103.18,103.16,2.88955433]
[1770117310084,11.01827436,103.18,103.16,4.18202886]
[1770117312490,1.32647363,103.19,103.16,4.18202886]
[1770117313272,1.32647363,103.19,103.17,1.29247453]
[1770117313596,1.32647363,103.21,103.18,4.18202886]
[1770117314177,11.01559675,103.21,103.19,2.88955433]
[1770117314693,11.01559675,103.21,103.18,4.18202886]
[1770117314874,1.32647363,103.2,103.18,4.18202886]
[1770117315075,1.32647363,103.2,103.17,4.18202886]
[1770117315695,1.32647363,103.2,103.16,4.18202886]
[1770117316495,11.01733514,103.19,103.16,4.18202886]
[1770117316689,1.32647363,103.18,103.16,4.18202886]
[1770117318491,1.32647363,103.18,103.16,4.18356215]
[1770117321301,1.32647363,103.18,103.17,2.89108762]
[1770117331295,11.047414,103.19,103.17,4.24025377]
[1770117331503,9.69086151,103.19,103.18,1.34916615]
[1770117331708,11.047414,103.19,103.17,4.24025377]
[1770117332289,11.047414,103.19,103.18,2.89108762]
[1770117334406,11.047414,103.19,103.17,2.89108762]
[1770117335297,11.047414,103.19,103.17,4.24025377]
[1770117336709,11.047414,103.19,103.18,2.89108762]
[1770117337293,11.047414,103.19,103.17,4.24025377]
[1770117337494,11.047414,103.19,103.17,2.89108762]
[1770117339011,11.047414,103.19,103.16,4.24025377]
[1770117340327,11.047414,103.19,103.17,1.34916615]
[1770117340619,11.047414,103.19,103.17,4.24025377]
[1770117341923,1.35655249,103.18,103.12,1.54916615]
[1770117342123,1.35655249,103.17,103.12,1.54916615]
[1770117342300,1.35655249,103.16,103.12,1.54916615]
[1770117342495,1.35655249,103.15,103.12,1.54916615]
[1770117343123,1.35655249,103.14,103.12,1e-08]
[1770117344696,9.69649956,103.13,103.12,1e-08]
[1770117344899,11.05305205,103.13,103.12,1e-08]
[1770117346229,11.05305205,103.13,103.1,2.89108762]
[1770117346927,1.35655249,103.12,103.09,0.2]
[1770117347122,1.35655249,103.11,103.09,0.2]
[1770117349026,9.69932104,103.1,103.09,0.2]
[1770117349423,11.05587353,103.1,103.08,0.2]
[1770117349729,35.30417614,103.1,103.08,1.28273686]
[1770117350108,11.05587353,103.1,103.08,1.28273686]
[1770117350435,11.05587353,103.1,103.08,4.17382448]
[1770117351829,11.05587353,103.1,103.07,2.97108762]
[1770117352010,1.30386932,103.09,103.07,0.08]
[1770117352212,1.30386932,103.09,103.06,0.2]
[1770117352535,1.2965419,103.08,103.06,0.2]
[1770117353124,10.99586294,103.1,103.08,1.35007771]
[1770117353305,1.2965419,103.1,103.08,4.24116533]
[1770117353511,10.99593585,103.1,103.08,2.89108762]
[1770117353722,10.99593585,103.1,103.07,4.24093903]
[1770117354221,10.99593585,103.1,103.08,2.89108762]
[1770117355929,10.99517873,103.11,103.08,4.2355272]
[1770117356226,10.99517873,103.11,103.09,4.2355272]
[1770117356530,9.69771581,103.12,103.1,4.23286782]
[1770117357931,9.69771581,103.12,103.1,4.11286782]
[1770117358437,10.99425771,103.12,103.1,4.11286782]
[1770117360229,1.2965419,103.11,103.09,2.89108762]
[1770117360420,1.2965419,103.11,103.08,4.10439736]
[1770117361038,1.2965419,103.11,103.09,1.21055086]
[1770117361223,1.2965419,103.11,103.09,4.10163848]
[1770117361417,9.69771581,103.12,103.1,1.20782367]
[1770117361621,11.04861647,103.15,103.11,2.89108762]
[1770117361828,1.3536893,103.18,103.14,2.89108762]
[1770117362027,11.0459358,103.18,103.16,2.89108762]
[1770117362731,1.3536893,103.17,103.14,2.89108762]
[1770117365626,11.04736902,103.16,103.13,2.89108762]
[1770117366729,11.04736902,103.16,103.14,2.89108762]
[1770117368635,11.0468406,103.17,103.14,2.89108762]
[1770117368820,11.0468406,103.17,103.15,2.89108762]
[1770117372542,11.0468406,103.17,103.12,24.24344745]
[1770117372745,11.0468406,103.17,103.15,2.89108762]
[1770117373824,11.0468406,103.17,103.14,2.89108762]
[1770117375354,11.0468406,103.17,103.15,2.89108762]
[1770117377147,1.3536893,103.16,103.14,2.89108762]
[1770117377336,11.0468406,103.17,103.14,2.89108762]
[1770117377926,1.3536893,103.16,103.13,2.89108762]
[1770117378125,1.3536893,103.16,103.14,2.89108762]
[1770117379543,1.3536893,103.15,103.11,102.0]
[1770117379734,1.3536893,103.15,103.1,9.69892283]
[1770117379933,1.3536893,103.15,103.12,2.89108762]
[1770117380445,1.3536893,103.15,103.12,2.89328039]
[1770117380841,1.3536893,103.15,103.11,12.59154143]
[1770117381245,1.3536893,103.15,103.1,9.69932104]
[1770117381246,1.3536893,103.14,103.1,9.69932104]
[1770117381549,1.3536893,103.14,103.11,2.89328039]
[1770117381845,11.04904589,103.15,103.12,2.89328039]
[1770117382332,1.3536893,103.14,103.09,111.69992165]
[1770117382532,1.3536893,103.14,103.1,2.89328039]
[1770117383543,11.05018886,103.13,103.1,2.89328039]
[1770117384248,1.3536893,103.12,103.09,2.89328039]
[1770117384651,1.3536893,103.12,103.1,2.89328039]
[1770117385928,1.3536893,103.12,103.09,2.89328039]
[1770117386234,11.05018886,103.13,103.09,2.89328039]
[1770117386550,11.05018886,103.13,103.1,2.89328039]
[1770117387644,1.3536893,103.12,103.07,33.95728637]
[1770117387871,11.05149008,103.12,103.09,2.89328039]
[1770117388451,11.05065646,103.13,103.1,2.89328039]
[1770117388854,1.3536893,103.12,103.1,2.89328039]
[1770117390948,9.69696716,103.13,103.1,2.89328039]
[1770117391154,11.05065646,103.13,103.1,2.89328039]
[1770117393759,9.69517673,103.15,103.12,2.89328039]
[1770117393956,1.3536893,103.16,103.13,2.89328039]
[1770117394134,1.3536893,103.15,103.11,2.89328039]
[1770117395155,11.04897675,103.15,103.12,2.89328039]
[1770117397158,11.04897675,103.15,103.12,12.59066766]
[1770117397658,11.04897675,103.15,103.12,2.89328039]
[1770117397860,2.89328039,103.18,103.12,9.69731034]
[1770117397861,1.3536893,103.17,103.12,9.69731034]
[1770117398157,1.3536893,103.17,103.14,2.89328039]
[1770117398634,33.92352633,103.18,103.15,2.89328039]
[1770117398635,11.04549003,103.18,103.15,2.89328039]
[1770117399260,1.3536893,103.17,103.15,2.89328039]
[1770117400396,27.11946551,103.2,103.16,2.89328039]
[1770117400397,11.04506104,103.19,103.16,2.89328039]
[1770117401451,1.3536893,103.18,103.16,2.89328039]
[1770117401944,1.3536893,103.18,103.15,12.58780576]
[1770117403965,11.04506104,103.19,103.16,2.89328039]
[1770117404258,11.0440855,103.2,103.18,2.89328039]
[1770117405065,1.3536893,103.2,103.18,2.89328039]
[1770117405767,11.04301167,103.21,103.18,2.89328039]
[1770117406149,1.3536893,103.2,103.18,2.89328039]
[1770117406347,1.3536893,103.21,103.18,2.89328039]
[1770117407564,11.04038356,103.24,103.2,2.89328039]
[1770117407758,11.04038356,103.24,103.22,2.89328039]
[1770117408771,11.04038356,103.24,103.21,2.89328039]
[1770117408772,1.3536893,103.23,103.21,2.89328039]
[1770117409265,11.04038356,103.24,103.21,2.89328039]
[1770117409479,11.03939616,103.25,103.23,2.89328039]
[1770117409761,11.03939616,103.25,103.22,2.89328039]
[1770117409952,1.3536893,103.24,103.22,2.89328039]
[1770117410153,11.03939616,103.25,103.22,2.89328039]
[1770117411170,33.99530763,103.26,103.22,2.89328039]
[1770117411470,1.3536893,103.25,103.22,2.89328039]
[1770117413267,11.03942032,103.25,103.23,2.89328039]
[1770117413658,11.03942032,103.25,103.22,2.89328039]
[1770117413855,1.3536893,103.24,103.2,9.68953152]
[1770117414059,1.3536893,103.24,103.21,2.89328039]
[1770117415569,1.3536893,103.23,103.2,2.89328039]
[1770117415771,1.3536893,103.23,103.21,2.89328039]
[1770117416471,1.3536893,103.23,103.2,2.89328039]
[1770117416663,1.3536893,103.23,103.21,2.89328039]
[1770117417363,1.30975833,103.22,103.21,1.53959109]
[1770117417876,1.30975833,103.22,103.2,2.89328039]
[1770117422173,1.30975833,103.25,103.22,1.32288087]
[1770117422357,1.30975833,103.25,103.24,2.89328039]
[1770117423359,11.09445279,103.26,103.24,2.89328039]
[1770117423856,11.09445279,103.26,103.23,4.21616126]
[1770117424061,1.30975833,103.25,103.23,2.89328039]
[1770117424260,1.30975833,103.25,103.22,2.89328039]
[1770117424456,1.30975833,103.25,103.22,4.21616126]
[1770117424953,10.99549769,103.25,103.23,2.89328039]
[1770117426384,10.99549769,103.25,103.22,4.21616126]
[1770117426677,1.30975833,103.24,103.22,4.21616126]
[1770117427481,1.30975833,103.25,103.22,4.21616126]
[1770117429085,10.99577717,103.25,103.22,2.89328039]
[1770117429292,10.99577717,103.25,103.22,4.20302256]
[1770117430987,9.68601884,103.25,103.23,4.19589321]
[1770117431177,10.99577717,103.25,103.23,4.19589321]
[1770117431377,10.99577717,103.25,103.22,4.19589321]
[1770117432080,10.99577717,103.25,103.23,2.89328039]
[1770117432286,1.30975833,103.24,103.22,4.19589321]
[1770117432485,1.30975833,103.24,103.22,2.89328039]
[1770117432675,1.30975833,103.24,103.21,12.5820675]
[1770117432979,10.99577717,103.25,103.22,4.18892668]
[1770117433295,1.30975833,103.24,103.22,4.18892668]
[1770117433493,10.99577717,103.25,103.22,4.18892668]
[1770117434003,1.30975833,103.24,103.22,4.18892668]
[1770117434174,1.30975833,103.25,103.22,4.18892668]
[1770117436498,10.99527539,103.25,103.23,4.17546735]
[1770117436686,0.1,103.27,103.24,4.17546735]
[1770117437298,9.78386196,103.27,103.25,4.21616126]
[1770117437795,9.78386196,103.27,103.22,33.90782727]
[1770117437971,33.99224774,103.27,103.24,2.89328039]
[1770117438594,1.30975833,103.26,103.24,2.89328039]
[1770117442378,1.30975833,103.26,103.24,2.88635728]
[1770117448584,1.29668063,103.27,103.25,4.13181781]
[1770117448803,1.29668063,103.27,103.26,2.88635728]
[1770117449006,1.29668063,103.27,103.25,2.88635728]
[1770117450506,0.1,103.27,103.26,2.88635728]
[1770117450811,1.29668063,103.28,103.26,2.88635728]
[1770117451287,1.29668063,103.28,103.26,4.13181781]
[1770117452004,0.1,103.28,103.27,2.88635728]
[1770117452183,1.19668063,103.29,103.27,4.13181781]
[1770117452597,10.97775569,103.3,103.28,2.88635728]
[1770117452803,0.1,103.3,103.28,4.13181781]
[1770117453886,1.29668063,103.3,103.28,4.13181781]
[1770117454501,1.29668063,103.3,103.29,2.88635728]
[1770117454804,0.1,103.31,103.29,4.13181781]
[1770117455013,0.1,103.31,103.3,2.88635728]
[1770117455192,1.51548973,103.32,103.3,4.13181781]
[1770117455391,0.1,103.33,103.31,2.88635728]
[1770117455693,0.1,103.33,103.31,4.13181781]
[1770117457099,9.77540511,103.36,103.33,1.24546053]
[1770117457403,10.97208574,103.36,103.33,2.88635728]
[1770117457797,10.97208574,103.36,103.33,4.13181781]
[1770117459106,1.19668063,103.35,103.32,4.13181781]
[1770117459316,1.19668063,103.35,103.32,1.24546053]
[1770117460814,9.67679504,103.34,103.32,1.24546053]
[1770117461011,10.87304948,103.35,103.32,4.13181781]
[1770117461214,10.97181825,103.36,103.34,2.88635728]
[1770117461389,0.1,103.36,103.34,4.13181781]
[1770117461713,10.97177642,103.36,103.34,2.88635728]
[1770117461891,10.97177642,103.36,103.33,4.13181781]
[1770117462309,10.97177642,103.36,103.34,2.88635728]
[1770117462811,0.1,103.36,103.34,4.13181781]
[1770117463186,1.29668063,103.36,103.34,4.13181781]
[1770117463392,1.29668063,103.36,103.32,4.13181781]
[1770117463593,1.19668063,103.35,103.3,10.92560906]
[1770117463894,1.19668063,103.35,103.3,4.13181781]
[1770117464294,1.19668063,103.35,103.3,13.81234594]
[1770117464692,2.98635728,103.36,103.29,2.88635728]
[1770117464693,1.19668063,103.33,103.29,2.88635728]
[1770117465013,9.67866821,103.32,103.29,13.81316268]
[1770117465195,9.67866821,103.32,103.29,4.13181781]
[1770117465696,10.87534884,103.32,103.29,4.13181781]
[1770117465893,9.67866821,103.32,103.29,4.13181781]
[1770117466514,10.87534884,103.32,103.29,4.13181781]
[1770117466699,35.06933579,103.33,103.29,4.13181781]
[1770117467613,1.19668063,103.32,103.29,4.13181781]
[1770117467913,1.19668063,103.32,103.28,4.13181781]
[1770117468290,4.08303791,103.32,103.28,1.24546053]
[1770117468489,33.87265516,103.33,103.28,1.24546053]
[1770117468490,1.19668063,103.31,103.28,1.24546053]
[1770117468722,10.87722274,103.3,103.27,1.24546053]
[1770117469308,9.68054211,103.3,103.28,1.24546053]
[1770117469501,9.68015409,103.31,103.28,4.13181781]
[1770117470319,10.87568793,103.32,103.29,4.1368299]
[1770117470519,10.87568793,103.32,103.3,2.88635728]
[1770117470820,9.6790073,103.32,103.3,4.1368299]
[1770117472124,10.94557396,103.33,103.3,4.1368299]
[1770117477628,35.1399028,103.33,103.3,4.1368299]
[1770117478214,35.1399028,103.33,103.3,1.25047262]
[1770117479821,1.2383737,103.32,103.29,1.20868371]
[1770117480021,1.2383737,103.32,103.28,4.09504099]
[1770117480408,1.2383737,103.32,103.3,1.20868371]
[1770117480608,1.2383737,103.32,103.29,4.09504099]
[1770117480809,1.2383737,103.32,103.29,1.20868371]
[1770117481317,1.2383737,103.32,103.29,4.09504099]
[1770117482110,10.91797877,103.31,103.28,4.09504099]
[1770117482615,1.2383737,103.3,103.27,1.20868371]
[1770117482929,1.2383737,103.29,103.25,2.88635728]
[1770117484831,9.68241673,103.28,103.25,4.09504099]
[1770117485933,10.92079043,103.28,103.25,4.09504099]
[1770117487533,10.92032036,103.29,103.26,4.09504099]
[1770117488227,10.92032036,103.29,103.26,1.20868371]
[1770117488426,10.92032036,103.29,103.26,4.09504099]
[1770117491415,9.68194666,103.29,103.27,1.20868371]
[1770117491629,9.68100567,103.3,103.28,1.20868371]
[1770117491810,9.68100567,103.3,103.28,4.09504099]
[1770117492433,35.11794918,103.31,103.28,2.88635728]
[1770117492731,1.2383737,103.32,103.29,4.09504099]
[1770117493428,10.91749531,103.32,103.29,4.09504099]
[1770117495239,1.2383737,103.31,103.29,1.20868371]
[1770117495613,35.11416584,103.32,103.29,1.20868371]
[1770117495819,1.2383737,103.31,103.29,1.20868371]
[1770117496526,10.91838775,103.31,103.29,1.20868371]
[1770117496719,10.91838775,103.31,103.28,4.09504099]
[1770117498841,10.91838775,103.31,103.29,1.20868371]
[1770117499146,35.11428806,103.32,103.29,4.09504099]
[1770117499625,9.67924383,103.32,103.3,4.09504099]
[1770117500027,10.91761753,103.32,103.3,4.09504099]
[1770117500844,10.91761753,103.32,103.29,4.11293334]
[1770117503146,1.12034868,103.31,103.29,1.22657606]
[1770117504739,1.12034868,103.32,103.29,1.22657606]
[1770117505042,10.79980407,103.32,103.29,1.22657606]
[1770117505346,10.79980407,103.32,103.29,4.1106497]
[1770117506446,1.12034868,103.3,103.26,4.1106497]
[1770117506829,1.12034868,103.3,103.25,2.88407364]
[1770117507034,10.80276541,103.28,103.25,4.1106497]
[1770117507242,1.12034868,103.26,103.22,1.22657606]
[1770117507543,1.12034868,103.24,103.21,1.22657606]
[1770117507848,1.12034868,103.24,103.2,1.42657606]
[1770117508149,1.12034868,103.24,103.2,0.2]
[1770117508150,1.12034868,103.23,103.2,0.2]
[1770117508347,1.12034868,103.22,103.2,0.2]
[1770117508651,1.12034868,103.22,103.19,0.2]
[1770117509225,9.68898362,103.21,103.19,0.2]
[1770117509421,10.8093323,103.21,103.19,0.2]
[1770117510645,10.80876819,103.22,103.19,1.42657606]
[1770117510832,10.80876819,103.22,103.19,4.3106497]
[1770117511027,9.68841951,103.22,103.2,1.22657606]
[1770117511542,10.80780201,103.23,103.2,4.1106497]
[1770117516054,1.12034868,103.22,103.2,1.22657606]
[1770117516255,1.12034868,103.22,103.19,4.3106497]
[1770117516437,10.80780201,103.23,103.2,1.22657606]
[1770117516638,10.80780201,103.23,103.19,3.08407364]
[1770117516639,1.12034868,103.22,103.19,4.3106497]
[1770117517156,1.12034868,103.22,103.19,1.42657606]
[1770117518044,10.8093323,103.21,103.19,0.2]
[1770117518254,1.12034868,103.2,103.19,0.2]
[1770117518560,10.8093323,103.21,103.19,0.2]
[1770117519555,10.8093323,103.21,103.19,1.42657606]
[1770117519763,10.8093323,103.21,103.19,0.2]
[1770117519955,24.22067462,103.22,103.19,4.3106497]
[1770117519956,10.80882133,103.22,103.19,4.3106497]
[1770117521060,1.12034868,103.21,103.19,0.2]
[1770117521951,1.12034868,103.2,103.17,1.22657606]
[1770117522149,1.12034868,103.19,103.16,34.05235003]
[1770117522663,9.69155344,103.19,103.17,1.22657606]
[1770117522865,10.81190212,103.19,103.16,36.93642367]
[1770117523559,10.81190212,103.19,103.14,9.89510648]
[1770117523560,1.12034868,103.18,103.14,4.3106497]
[1770117523858,1.12034868,103.18,103.15,1.22657606]
[1770117524062,1.12034868,103.18,103.14,1.42657606]
[1770117524270,1.12034868,103.18,103.15,4.1106497]
[1770117524454,10.81190212,103.19,103.16,4.1106497]
[1770117525252,9.69155344,103.19,103.17,1.22657606]
[1770117525452,10.81070211,103.2,103.18,2.88407364]
[1770117525650,10.81070211,103.2,103.17,4.1106497]
[1770117526742,9.69035343,103.2,103.18,1.22657606]
[1770117526950,10.80984235,103.21,103.19,2.88407364]
[1770117528668,10.80984235,103.21,103.18,4.1106497]
[1770117529962,10.80984235,103.21,103.16,9.69314313]
[1770117529963,1.12034868,103.2,103.16,4.1106497]
[1770117530269,1.12034868,103.2,103.17,1.22657606]
[1770117530658,1.12034868,103.2,103.16,4.06462873]
[1770117530861,10.83799368,103.19,103.16,4.06462873]
[1770117532555,9.69086151,103.19,103.17,4.03765]
[1770117534078,25.40262774,103.22,103.19,1.15357636]
[1770117534285,35.09067269,103.22,103.19,4.03765]
[1770117539082,1.18140846,103.21,103.19,4.03765]
[1770117539279,1.18140846,103.21,103.17,4.03765]
[1770117541391,35.09613714,103.2,103.17,4.03765]
[1770117541577,25.40246461,103.22,103.19,1.15357636]
[1770117541760,25.40246461,103.22,103.19,4.03765]
[1770117541960,9.68710646,103.23,103.19,1.15357636]
[1770117542181,1.18140846,103.22,103.19,4.03765]
[1770117543266,9.68898362,103.21,103.19,4.03765]
[1770117543665,10.87039208,103.21,103.19,4.03765]
[1770117544062,9.68898362,103.21,103.19,4.03765]
[1770117544267,10.87000872,103.22,103.2,2.88407364]
[1770117546366,9.68860026,103.22,103.2,4.03765]
[1770117547484,10.86883989,103.23,103.2,4.03765]
[1770117547668,9.68743143,103.23,103.21,4.03765]
[1770117548567,1.18140846,103.23,103.21,4.03765]
[1770117548979,33.89747146,103.26,103.23,1.15357636]
[1770117549284,5.05945996,103.28,103.25,4.03765]
[1770117549285,1.18140846,103.28,103.25,4.03765]
[1770117549581,9.68258477,103.28,103.27,2.88407364]
[1770117549785,10.86333932,103.29,103.27,2.88407364]
[1770117556788,10.86333932,103.29,103.27,4.03765]
[1770117556986,10.86333932,103.29,103.27,2.88407364]
[1770117557582,10.86244643,103.3,103.28,2.88407364]
[1770117561600,1.10199098,103.29,103.26,2.88407364]
[1770117561979,1.10199098,103.29,103.27,2.88407364]
[1770117562381,10.78408164,103.29,103.27,2.88407364]
[1770117562678,1.10199098,103.28,103.25,2.88407364]
[1770117563686,1.10199098,103.28,103.26,2.88407364]
[1770117564897,9.68335431,103.27,103.25,4.0193975]
[1770117565080,10.78534529,103.27,103.25,2.88407364]
[1770117565281,10.78534529,103.27,103.24,4.0193975]
[1770117566396,10.78534529,103.27,103.24,4.02180308]
[1770117567295,10.78534529,103.27,103.25,2.88647922]
[1770117567796,10.78534529,103.27,103.26,2.88647922]
[1770117568184,10.78534529,103.27,103.25,2.88647922]
[1770117569898,1.10199098,103.26,103.2,1.13532386]
[1770117570079,1.10199098,103.25,103.21,2.88647922]
[1770117570277,1.10199098,103.25,103.21,4.02180308]
[1770117570479,1.10199098,103.25,103.21,2.88647922]
[1770117570798,1.10199098,103.25,103.21,4.02180308]
[1770117572195,10.78815913,103.24,103.21,4.02180308]
[1770117572496,1.10199098,103.23,103.2,4.02180308]
[1770117573690,1.10199098,103.23,103.2,1.13532386]
[1770117573988,1.10199098,103.23,103.2,4.02180308]
[1770117574987,10.78954402,103.23,103.2,4.02180308]
[1770117577215,1.10199098,103.22,103.19,4.02180308]
[1770117577385,1.10199098,103.22,103.18,4.02180308]
[1770117578287,1.10199098,103.22,103.19,1.13532386]
[1770117578596,1.10199098,103.22,103.18,1.13532386]
[1770117578903,1.10199098,103.2,103.16,4.02180308]
[1770117579289,9.69086151,103.19,103.16,2.88647922]
[1770117579489,9.69086151,103.19,103.16,4.02180308]
[1770117579809,1.10199098,103.18,103.15,0.2]
[1770117579983,1.10199098,103.18,103.15,4.22180308]
[1770117580405,1.10199098,103.18,103.15,1.33532386]
[1770117580599,1.10199098,103.18,103.15,0.2]
[1770117581405,10.79473111,103.17,103.15,0.2]
[1770117581586,1.10199098,103.17,103.15,0.2]
[1770117581785,10.79425037,103.18,103.15,4.22180308]
[1770117582208,10.79425037,103.18,103.15,1.33532386]
[1770117582390,10.79425037,103.18,103.15,4.22180308]
[1770117583404,10.79425037,103.18,103.16,2.88647922]
[1770117585107,10.79425037,103.18,103.16,4.02180308]
[1770117586013,10.79425037,103.18,103.15,4.21983038]
[1770117586711,10.79425037,103.18,103.16,1.13136698]
[1770117586913,10.79425037,103.18,103.15,4.2178462]
[1770117588396,10.79425037,103.18,103.16,1.1294056]
[1770117588915,10.79425037,103.18,103.15,4.21394596]
[1770117590693,10.79425037,103.18,103.16,1.12178276]
[1770117592520,10.79425037,103.18,103.15,4.20277162]
[1770117593220,9.69225939,103.18,103.16,1.1162924]
[1770117594717,1.13391884,103.18,103.16,1.1162924]
[1770117595102,1.13391884,103.18,103.15,4.19921568]
[1770117596902,1.13391884,103.17,103.15,1.31273646]
[1770117597324,10.82642173,103.18,103.15,1.31273646]
[1770117597922,10.82642173,103.18,103.15,4.19921568]
[1770117598320,9.69250289,103.18,103.15,4.19921568]
[1770117598527,10.82642173,103.18,103.15,4.19921568]
[1770117600539,1.13391884,103.18,103.16,1.10254857]
[1770117600709,8.83960754,103.19,103.16,3.98902779]
[1770117600908,1.13391884,103.18,103.15,4.18902779]
[1770117601227,1.13391884,103.18,103.15,1.30254857]
[1770117601525,10.82513924,103.19,103.16,3.98739741]
[1770117602110,1.13391884,103.18,103.16,3.98739741]
[1770117602718,10.82575589,103.18,103.16,3.98739741]
[1770117603328,10.82575589,103.18,103.16,1.10091819]
[1770117603724,10.82575589,103.18,103.15,4.18419262]
[1770117604929,2.88647922,103.21,103.18,1.09613855]
[1770117604930,1.13391884,103.21,103.18,1.09613855]
[1770117605236,9.68898362,103.21,103.19,3.98261777]
[1770117605557,10.82290246,103.21,103.18,3.98261777]
[1770117606433,1.13391884,103.2,103.16,3.98106102]
[1770117607025,9.69086151,103.19,103.16,3.98106102]
[1770117607225,10.82478035,103.19,103.16,3.98106102]
[1770117608327,1.13391884,103.18,103.15,4.17800095]
[1770117609235,10.8258145,103.18,103.15,3.08647922]
[1770117609415,10.82534497,103.19,103.16,3.97649722]
[1770117609616,10.82534497,103.19,103.15,4.17501077]
[1770117609617,1.13391884,103.18,103.15,4.17501077]
[1770117611513,1.13391884,103.18,103.15,13.8696285]
[1770117611714,10.82584626,103.18,103.15,13.8696285]
[1770117612737,10.82584626,103.18,103.16,2.88647922]
[1770117613748,1.13391884,103.17,103.15,1.28853155]
[1770117613923,1.13391884,103.17,103.15,4.17501077]
[1770117614124,10.82584626,103.18,103.15,13.86945964]
[1770117614434,10.82525925,103.19,103.16,3.96923374]
[1770117615429,10.82430864,103.2,103.17,3.96644381]
[1770117615638,1.13391884,103.19,103.17,2.88647922]
[1770117615826,10.8252154,103.19,103.17,1.07996459]
[1770117616237,10.8252154,103.19,103.17,3.96644381]
[1770117616421,10.82290246,103.21,103.18,3.96644381]
[1770117616626,10.82290246,103.21,103.19,2.88647922]
[1770117617023,1.13391884,103.21,103.19,3.96507283]
[1770117617222,10.82246274,103.22,103.19,3.96507283]
[1770117617428,1.13391884,103.21,103.19,2.88647922]
[1770117617845,9.6885439,103.22,103.19,3.9637176]
[1770117618015,10.82246274,103.22,103.2,2.88647922]
[1770117619826,1.13391884,103.22,103.2,2.88647922]
[1770117620344,10.82206589,103.22,103.2,2.88647922]
[1770117622350,10.82206589,103.22,103.19,3.9637176]
[1770117626449,10.82206589,103.22,103.18,9.69131652]
[1770117626450,9.68814705,103.22,103.2,3.93924327]
[1770117626840,10.74045586,103.23,103.21,3.93924327]
[1770117627041,1.05297385,103.23,103.21,3.93924327]
[1770117627352,1.05297385,103.23,103.21,2.88897594]
[1770117627656,10.73967085,103.24,103.21,13.62810199]
[1770117627834,10.73967085,103.24,103.22,2.88897594]
[1770117628152,1.05297385,103.23,103.22,2.88897594]
[1770117629741,1.05297385,103.23,103.21,3.93924327]
[1770117629944,1.05297385,103.22,103.19,10.74056956]
[1770117630257,1.05297385,103.22,103.2,2.88897594]
[1770117630752,1.05297385,103.22,103.2,3.93924327]
[1770117631055,10.74031595,103.23,103.2,13.62915142]
[1770117631265,10.74031595,103.23,103.21,2.88897594]
[1770117631464,10.7393276,103.24,103.21,3.93924327]
[1770117632557,10.73875477,103.25,103.22,3.93924327]
[1770117633153,1.05297385,103.24,103.22,3.93924327]
[1770117633764,1.05297385,103.24,103.22,2.88897594]
[1770117635065,10.73942069,103.24,103.22,2.88897594]
[1770117636177,9.68644684,103.24,103.22,3.93924327]
[1770117637667,1.05297385,103.24,103.22,3.93924327]
[1770117638353,1.05297385,103.24,103.21,3.93924327]
[1770117639875,10.73956738,103.24,103.21,1.05026733]
[1770117640052,10.73956738,103.24,103.22,2.88897594]
[1770117640771,10.73956738,103.24,103.22,3.93797213]